Workbook

Sheet Agouron2015_dSi.csv
A1: Cruise | B1: KM1509
A2: Date run | B2: 2015-06-18
A3: Analysis | B3: Low level silicate
A4: Analyst | B4: Lauren and Uli
A5: revised date
A7: Sample ID | C7: Abs @ 810.0 | D7: uM Si | E7: slope | F7: intercept
A8: S1 | C8: 0.2631 | D8: =D9/2 -> 0.3125 | E8: =LINEST(C8:C12,D8:D12,TRUE,TRUE) -> 0.137523871 | F8: 0.2419875
A9: S2 | C9: 0.3141 | D9: 0.625 | E9: 0.007098750914 | F9: 0.0183199442
A10: S3 | C10: 0.4487 | D10: 1.25 | E10: 0.9920700347 | F10: 0.02706035096
A11: S4 | C11: 0.5988 | D11: 2.5 | E11: 375.311871 | F11: 3
A12: S5 | C12: 0.9175 | D12: =D13/2 -> 5 | E12: 0.2748268442 | F12: 0.002196787782
A13: S6 | C13: 1.3083 | D13: 10
B14: Depth (m) | D14: uM dSi | E14: Average | F14: St Dev
A15: KM1509 2-3-23-01 | B15: 5 | C15: 0.2017 | D15: =(C15-$C$97)/$E$8 -> 0.9908582831
A16: KM1509 2-3-23-02 | B16: 5 | C16: 0.1928 | D16: =(C16-$C$97)/$E$8 -> 0.9261422455
A17: KM1509 2-3-23-03 | B17: 5 | C17: 0.1996 | D17: 0.9755882068 | E17: =AVERAGE(D15:D17) -> 0.9641962451 | F17: =STDEV(D15:D17) -> 0.03382859696
A18: KM1509 2-3-19-01 | B18: 25 | C18: 0.201 | D18: 0.9857682576
A19: KM1509 2-3-19-02 | B19: 25 | C19: 0.198 | D19: 0.9639538629
A20: KM1509 2-3-19-03 | B20: 25 | C20: 0.1984 | D20: 0.9668624489 | E20: =AVERAGE(D18:D20) -> 0.9721948565 | F20: =STDEV(D18:D20) -> 0.01184452962
A21: KM1509 2-3-16-01 | B21: 45 | C21: 0.2122 | D21: 1.067208664
A22: KM1509 2-3-16-02 | B22: 45 | C22: 0.2274 | D22: 1.177734931
A23: KM1509 2-3-16-03 | B23: 45 | C23: 0.2094 | D23: 1.046848563 | E23: =AVERAGE(D21:D23) -> 1.097264053 | F23: =STDEV(D21:D23) -> 0.07042943356
A24: KM1509 2-3-14-01 | B24: 75 | C24: 0.222 | D24: 1.13846902
A25: KM1509 2-3-14-02 | B25: 75 | C25: 0.2027 | D25: 0.998129748
A26: KM1509 2-3-14-03 | B26: 75 | C26: 0.2203 | D26: 1.12610753 | E26: =AVERAGE(D24:D26) -> 1.087568766 | F26: =STDEV(D24:D26) -> 0.07770267109
A27: KM1509 2-3-12-01 | B27: 100 | C27: 0.2299 | D27: 1.195913593
A28: KM1509 2-3-12-02 | B28: 100 | C28: 0.3623 | D28: 2.158655545
A29: KM1509 2-3-12-02-re | B29: 100 | C29: 0.2216 | D29: 1.135560434
A30: KM1509 2-3-12-03 | B30: 100 | C30: 0.2245 | D30: 1.156647683 | E30: =AVERAGE(D27,D29,D30) -> 1.162707237 | F30: =STDEV(D27,D29,D30) -> 0.0306294725
A31: KM1509 2-9-23-01 | B31: 5 | C31: 0.2132 | D31: 1.074480129
A32: KM1509 2-9-23-02 | B32: 5 | C32: 0.1958 | D32: 0.9479566402
A33: KM1509 2-9-23-03 | B33: 5 | C33: 0.1913 | D33: 0.9152350481 | E33: =AVERAGE(D31:D33) -> 0.9792239392 | F33: =STDEV(D31:D33) -> 0.08410102237
A34: KM1509 2-9-23-01-re | B34: 5 | C34: 0.2131 | D34: 1.073752983
A35: KM1509 2-9-19-01 | B35: 25 | C35: 0.2047 | D35: 1.012672678
A36: KM1509 2-9-19-02 | B36: 25 | C36: 0.1978 | D36: 0.96249957
A37: KM1509 2-9-19-03 | B37: 25 | C37: 0.2063 | D37: 1.024307022 | E37: =AVERAGE(D35:D37) -> 0.9998264231 | F37: =STDEV(D35:D37) -> 0.03284524262
A38: KM1509 2-9-16-01 | B38: 45 | C38: 0.2086 | D38: 1.041031391
A39: KM1509 2-9-16-02 | B39: 45 | C39: 0.198 | D39: 0.9639538629
A40: KM1509 2-9-16-03 | B40: 45 | C40: 0.1987 | D40: 0.9690438884 | E40: =AVERAGE(D38:D40) -> 0.9913430474 | F40: =STDEV(D38:D40) -> 0.0431065621
A41: KM1509 2-9-14-01 | B41: 75 | C41: 0.2089 | D41: 1.04321283
A42: KM1509 2-9-14-02 | B42: 75 | C42: 0.207 | D42: 1.029397047
A43: KM1509 2-9-14-03 | B43: 75 | C43: 0.2076 | D43: 1.033759926 | E43: =AVERAGE(D41:D43) -> 1.035456601 | F43: =STDEV(D41:D43) -> 0.007062435625
A44: KM1509 2-9-12-01 | B44: 100 | C44: 0.2109 | D44: 1.05775576
A45: KM1509 2-9-12-02 | B45: 100 | C45: 0.2343 | D45: 1.227908039
A46: KM1509 2-9-12-03 | B46: 100 | C46: 0.2061 | D46: 1.022852729 | E46: =AVERAGE(D44:D46) -> 1.102838842 | F46: =STDEV(D44:D46) -> 0.1097099963
A47: KM1509 2-15-22-01 | B47: 5 | C47: 0.2216 | D47: 1.135560434
A48: KM1509 2-15-22-02 | B48: 5 | C48: 0.2234 | D48: 1.148649071
A49: KM1509 2-15-22-03 | B49: 5 | C49: 0.2252 | D49: 1.161737708 | E49: =AVERAGE(D47:D49) -> 1.148649071 | F49: =STDEV(D47:D49) -> 0.01308863681
A50: KM1509 2-15-18-01 | B50: 25 | C50: 0.2235 | D50: 1.149376218
A51: KM1509 2-15-18-02 | B51: 25 | C51: 0.2234 | D51: 1.148649071
A52: KM1509 2-15-18-03 | B52: 25 | C52: 0.224 | D52: 1.15301195 | E52: =AVERAGE(D50:D52) -> 1.150345746 | F52: =STDEV(D50:D52) -> 0.002337448932
A53: KM1509 2-15-15-01 | B53: 45 | C53: 0.2179 | D53: 1.108656014
A54: KM1509 2-15-15-02 | B54: 45 | C54: 0.2182 | D54: 1.110837454
A55: KM1509 2-15-15-03 | B55: 45 | C55: 0.1911 | D55: 0.9137807552 | E55: =AVERAGE(D53:D55) -> 1.044424741 | F55: =STDEV(D53:D55) -> 0.113146268
A56: KM1509 2-15-13-01 | B56: 75 | C56: 0.2262 | D56: 1.169009173
A57: KM1509 2-15-13-02 | B57: 75 | C57: 0.226 | D57: 1.16755488
A58: KM1509 2-15-13-03 | B58: 75 | C58: 0.2288 | D58: 1.187914982 | E58: =AVERAGE(D56:D58) -> 1.174826345 | F58: =STDEV(D56:D58) -> 0.01135839127
A59: KM1509 2-15-11-01 | B59: 100 | C59: 0.2363 | D59: 1.242450968
A60: KM1509 2-15-11-02 | B60: 100 | C60: 0.2331 | D60: 1.219182281
A61: KM1509 2-15-11-03 | B61: 100 | C61: 0.2357 | D61: 1.238088089 | E61: =AVERAGE(D59:D61) -> 1.233240446 | F61: =STDEV(D59:D61) -> 0.01236861715
A62: KM1509 2-21-22-01 | B62: 5 | C62: 0.204 | D62: 1.007582652
A63: KM1509 2-21-22-02 | B63: 5 | C63: 0.2109 | D63: 1.05775576
A64: KM1509 2-21-22-03 | B64: 5 | C64: 0.2163 | D64: 1.097021671 | E64: =AVERAGE(D62:D64) -> 1.054120028 | F64: =STDEV(D62:D64) -> 0.04483021757
A65: KM1509 2-21-18-01 | B65: 25 | C65: 0.2099 | D65: 1.050484295
A66: KM1509 2-21-18-02 | B66: 25 | C66: 0.2207 | D66: 1.129016116
A67: KM1509 2-21-18-03 | B67: 25 | C67: 0.2282 | D67: 1.183552103 | E67: =AVERAGE(D64:D66) -> 1.092174027 | F67: =STDEV(D65:D67) -> 0.06689352504
A68: KM1509 2-21-15-01 | B68: 45 | C68: 0.2169 | D68: 1.101384549
A69: KM1509 2-21-15-02 | B69: 45 | C69: 0.2251 | D69: 1.161010562
A70: KM1509 2-21-15-03 | B70: 45 | C70: 0.2321 | D70: 1.211910816 | E70: =AVERAGE(D68:D70) -> 1.158101976 | F70: =STDEV(D68:D70) -> 0.05532050972
A71: KM1509 2-21-13-01 | B71: 75 | C71: 0.2332 | D71: 1.219909427
A72: KM1509 2-21-13-02 | B72: 75 | C72: 0.2289 | D72: 1.188642128
A73: KM1509 2-21-13-03 | B73: 75 | C73: 0.2317 | D73: 1.20900223 | E73: =AVERAGE(D71:D73) -> 1.205851262 | F73: =STDEV(D71:D73) -> 0.01587001725
A74: KM1509 2-21-11-01 | B74: 100 | C74: 0.2186 | D74: 1.11374604
A75: KM1509 2-21-11-02 | B75: 100 | C75: 0.2299 | D75: 1.195913593
A76: KM1509 2-21-11-03 | B76: 100 | C76: 0.2334 | D76: 1.22136372 | E76: =AVERAGE(D74:D76) -> 1.177007784 | F76: =STDEV(D74:D76) -> 0.05624467521
A77: KM1509 2-26-22-01 | B77: 5 | C77: 0.2011 | D77: 0.9864954041
A78: KM1509 2-26-22-02 | B78: 5 | C78: 0.2097 | D78: 1.049030002
A79: KM1509 2-26-22-03 | B79: 5 | C79: 0.2146 | D79: 1.08466018 | E79: =AVERAGE(D77:D79) -> 1.040061862 | F79: =STDEV(D77:D79) -> 0.04969307263
A80: KM1509 2-26-18-01 | B80: 25 | C80: 0.1997 | D80: =(C80-$C$97)/$E$8 -> 0.9763153533
A81: KM1509 2-26-18-02 | B81: 25 | C81: 0.2051 | D81: 1.015581264
A82: KM1509 2-26-18-03 | B82: 25 | C82: 0.2103 | D82: 1.053392881 | E82: =AVERAGE(D80:D82) -> 1.015096499 | F82: =STDEV(D80:D82) -> 0.0385410505
A83: KM1509 2-26-15-01 | B83: 45 | C83: 0.2099 | D83: 1.050484295
A84: KM1509 2-26-15-02 | B84: 45 | C84: 0.2174 | D84: 1.105020282
A85: KM1509 2-26-15-03 | B85: 45 | C85: 0.2226 | D85: 1.142831899 | E85: =AVERAGE(D83:D85) -> 1.099445492 | F85: =STDEV(D83:D85) -> 0.04642551787
A86: KM1509 2-26-13-01 | B86: 75 | C86: 0.2912 | D86: 1.641654391
A87: KM1509 2-26-13-02 | B87: 75 | C87: 0.2225 | D87: 1.142104753
A88: KM1509 2-26-13-03 | B88: 75 | C88: 0.2326 | D88: 1.215546548
A89: KM1509 2-26-13-01-re | B89: 75 | C89: 0.2156 | D89: 1.091931645 | E89: =AVERAGE(D87:D89) -> 1.149860982 | F89: =STDEV(D87:D89) -> 0.06217137921
A90: KM1509 2-26-11-01 | B90: 100 | C90: 0.2162 | D90: 1.096294524
A91: KM1509 2-26-11-02 | B91: 100 | C91: 0.2269 | D91: 1.174099198
A92: KM1509 2-26-11-03 | B92: 100 | C92: 0.2401 | D92: 1.270082535 | E92: =AVERAGE(D90:D93) -> 1.201912552 | F92: =STDEV(D90:D92) -> 0.08705232242
A93: KM1509 2-26-11-03-re | B93: 100 | C93: 0.2397 | D93: 1.267173949
A94: blank1(Si-free) | C94: 0.0651 | D94: -0.002423821632
A95: blank2(Si-free) | C95: 0.0648 | D95: -0.0046052611
A96: blank3(Si-free) | C96: 0.0664 | D96: 0.007029082732
A97: average | C97: =AVERAGE(C94:C96) -> 0.06543333333 | D97: 0
